bitfinex/quotes_SOLUSD_20220105
["timestamp","ask_amount","ask_price","bid_price","bid_amount"]
[1641358658508,354.63998693,168.53,168.47,2.0263]
[1641358659705,354.63998693,168.53,168.47,1.5263]
[1641358660309,354.63998693,168.53,168.47,1.7663]
[1641358661209,354.89998693,168.53,168.47,1.7663]
[1641358661411,355.13998693,168.53,168.47,1.2663]
[1641358661610,354.63998693,168.53,168.47,1.2663]
[1641358662011,354.63998693,168.53,168.47,1.7663]
[1641358662611,354.63998693,168.53,168.47,2.0263]
[1641358663311,354.63998693,168.53,168.47,1.7663]
[1641358664614,354.63998693,168.53,168.47,2.0263]
[1641358671521,354.63998693,168.53,168.47,1.7663]
[1641358672925,354.63998693,168.53,168.47,2.0263]
[1641358673427,354.63998693,168.53,168.48,27.59372275]
[1641358673628,354.63998693,168.53,168.48,0.26]
[1641358673827,354.63998693,168.53,168.48,0.76]
[1641358674325,354.63998693,168.53,168.47,2.0263]
[1641358674525,354.63998693,168.53,168.47,1.5263]
[1641358674725,354.63998693,168.53,168.47,2.0263]
[1641358675527,354.63998693,168.53,168.47,1.7663]
[1641358677029,354.63998693,168.53,168.47,2.0263]
[1641358678031,352.4,168.53,168.48,128.22]
[1641358678231,354.04937677,168.55,168.48,134.696]
[1641358678431,354.04937677,168.55,168.48,135.456]
[1641358678832,352.4,168.55,168.48,135.456]
[1641358679033,352.4,168.55,168.5,118.72]
[1641358679234,352.4,168.55,168.51,9.5]
[1641358679433,352.4,168.55,168.51,10.0]
[1641358679634,352.4,168.55,168.51,10.26]
[1641358680035,354.86067644,168.57,168.51,10.26]
[1641358680836,354.86067644,168.57,168.51,11.4982]
[1641358681236,1.64937677,168.56,168.51,11.4982]
[1641358681536,354.04937677,168.56,168.51,11.4982]
[1641358682156,352.4,168.56,168.51,11.4982]
[1641358682455,352.4,168.56,168.51,11.2382]
[1641358683656,352.4,168.56,168.51,11.4982]
[1641358684058,354.86067644,168.57,168.51,11.4982]
[1641358691966,356.51005321,168.57,168.51,11.4982]
[1641358692566,354.86067644,168.57,168.51,11.4982]
[1641358693468,356.51005321,168.57,168.51,11.4982]
[1641358694167,354.86067644,168.57,168.51,11.4982]
[1641358697273,356.51005321,168.57,168.51,11.4982]
[1641358699074,356.51005321,168.57,168.51,10.0]
[1641358700904,356.51005321,168.57,168.51,10.26]
[1641358701475,354.86067644,168.57,168.51,10.26]
[1641358707088,355.36067644,168.57,168.51,9.76]
[1641358707287,354.86067644,168.57,168.51,9.76]
[1641358707988,355.36067644,168.57,168.51,9.76]
[1641358709913,352.9,168.57,168.51,9.76]
[1641358710115,352.4,168.57,168.51,9.76]
[1641358710311,354.04937677,168.58,168.51,10.26]
[1641358711013,352.4,168.58,168.51,10.26]
[1641358714917,384.80271846,168.59,168.51,10.26]
[1641358715517,385.06271846,168.59,168.51,9.5]
[1641358715920,385.56271846,168.59,168.51,9.5]
[1641358716421,1.64937677,168.57,168.51,9.5]
[1641358717022,2.14937677,168.57,168.51,9.5]
[1641358717421,1.64937677,168.57,168.51,9.5]
[1641358717620,1.64937677,168.57,168.51,9.76]
[1641358718221,24.77037677,168.58,168.51,9.76]
[1641358718421,25.27037677,168.58,168.51,9.76]
[1641358718821,25.27037677,168.58,168.51,9.5]
[1641358719125,377.93037677,168.58,168.51,9.5]
[1641358719525,1.64937677,168.56,168.51,9.5]
[1641358720326,354.04937677,168.56,168.51,9.5]
[1641358721127,1.64937677,168.55,168.51,9.5]
[1641358722025,1.90937677,168.55,168.48,10.7502]
[1641358722226,26.23047677,168.55,168.46,9.5]
[1641358722425,26.73047677,168.55,168.46,10.0]
[1641358723228,2.6454688,168.53,168.46,10.0]
[1641358723426,22.69556434,168.52,168.46,10.0]
[1641358724526,22.69556434,168.52,168.46,10.26]
[1641358729736,1.64937677,168.53,168.46,10.26]
[1641358729933,354.04937677,168.53,168.46,10.26]
[1641358730732,354.62231064,168.53,168.46,10.26]
[1641358733134,352.4,168.53,168.46,10.26]
[1641358733334,381.34226823,168.54,168.46,10.26]
[1641358733539,381.34226823,168.54,168.46,10.32]
[1641358734239,2.446574,168.53,168.46,10.32]
[1641358734438,25.467374,168.53,168.46,10.32]
[1641358735059,377.867374,168.53,168.46,11.619]
[1641358735259,354.846574,168.53,168.46,11.619]
[1641358741867,352.4,168.53,168.46,11.619]
[1641358742067,375.34,168.57,168.46,11.619]
[1641358742269,375.6,168.57,168.46,11.619]
[1641358742967,2.56469971,168.56,168.46,11.619]
[1641358743366,355.22469971,168.56,168.46,11.619]
[1641358743767,355.22469971,168.56,168.47,118.72]
[1641358743967,355.22469971,168.56,168.48,9.5]
[1641358744377,355.22469971,168.56,168.48,10.26]
[1641358745469,355.22469971,168.56,168.48,11.5393]
[1641358745670,354.96469971,168.56,168.48,11.5393]
[1641358745870,354.96469971,168.56,168.48,11.5993]
[1641358749275,354.96469971,168.56,168.48,130.3193]
[1641358749574,354.96469971,168.56,168.48,130.2593]
[1641358754480,354.96469971,168.56,168.49,118.72]
[1641358754680,354.96469971,168.56,168.5,9.5]
[1641358754885,354.96469971,168.56,168.5,10.0]
[1641358755083,354.96469971,168.56,168.5,10.26]
[1641358755786,354.96469971,168.56,168.51,118.72]
[1641358755989,354.96469971,168.56,168.52,9.5]
[1641358755990,352.4,168.56,168.52,9.5]
[1641358756184,352.4,168.56,168.52,9.56]
[1641358756384,354.04937677,168.59,168.52,10.32]
[1641358756586,354.04937677,168.59,168.53,1.3021]
[1641358756789,352.4,168.59,168.54,9.5]
[1641358756986,352.4,168.59,168.54,10.26]
[1641358757187,352.4,168.59,168.54,17.727]
[1641358758086,356.45341202,168.61,168.54,17.727]
[1641358758286,356.45341202,168.61,168.54,10.26]
[1641358758487,354.04937677,168.61,168.54,10.26]
[1641358759089,352.4,168.61,168.54,10.26]
[1641358760192,406.87099072,168.62,168.54,10.26]
[1641358760390,1.64937677,168.61,168.54,10.26]
[1641358760789,404.14996499,168.62,168.54,10.26]
[1641358761817,407.1594302,168.62,168.54,10.26]
[1641358762018,404.14996499,168.62,168.54,10.26]
[1641358762418,377.66937677,168.62,168.54,10.26]
[1641358762620,354.04937677,168.62,168.55,118.72]
[1641358762819,354.04937677,168.62,168.57,118.72]
[1641358763017,354.04937677,168.62,168.59,118.72]
[1641358763218,354.04937677,168.62,168.6,9.53197093]
[1641358763418,354.04937677,168.62,168.6,10.03197093]
[1641358763620,352.4,168.62,168.6,10.29197093]
[1641358763818,354.04937677,168.66,168.61,118.72]
[1641358764118,352.40007677,168.66,168.64,118.72]
[1641358764419,352.40007677,168.66,168.65,9.53197093]
[1641358764618,352.4,168.66,168.65,9.53197093]
[1641358764818,352.4,168.66,168.65,10.29197093]
[1641358765518,445.1,168.69,168.65,10.29197093]
[1641358767923,352.4,168.69,168.65,10.29197093]
[1641358768923,352.4,168.69,168.65,129.01197093]
[1641358770921,352.4,168.69,168.65,128.75197093]
[1641358771322,379.52235602,168.73,168.65,128.75197093]
[1641358771522,379.78235602,168.73,168.65,128.75197093]
[1641358772121,379.78235602,168.73,168.65,129.01197093]
[1641358774724,380.28235602,168.73,168.65,129.01197093]
[1641358774925,380.28235602,168.73,168.65,128.25197093]
[1641358775329,380.28235602,168.73,168.65,128.51197093]
[1641358775927,380.28235602,168.73,168.65,128.25197093]
[1641358777027,380.28235602,168.73,168.65,128.51197093]
[1641358777227,380.28235602,168.73,168.65,129.01197093]
[1641358779932,379.78235602,168.73,168.65,129.01197093]
[1641358781034,380.28235602,168.73,168.65,129.01197093]
[1641358781237,380.28235602,168.73,168.65,128.75197093]
[1641358788943,380.28235602,168.73,168.65,129.01197093]
[1641358788944,377.29091223,168.73,168.65,129.01197093]
[1641358789143,353.16,168.73,168.65,151.96314708]
[1641358789343,352.66,168.73,168.65,151.96314708]
[1641358790146,2.95602786,168.72,168.65,151.96314708]
[1641358791452,2.95602786,168.72,168.65,129.01197093]
[1641358791646,27.05152786,168.72,168.65,129.01197093]
[1641358795371,2.95602786,168.72,168.65,129.01197093]
[1641358796373,355.35602786,168.72,168.65,129.01197093]
[1641358796975,355.35602786,168.72,168.65,128.25197093]
[1641358797176,355.61602786,168.72,168.65,128.25197093]
[1641358798476,355.61602786,168.72,168.65,128.51197093]
[1641358798880,355.61602786,168.72,168.65,129.01197093]
[1641358799576,355.35602786,168.72,168.65,129.01197093]
[1641358802179,355.35602786,168.72,168.65,128.51197093]
[1641358802380,361.11502786,168.72,168.65,128.75197093]
[1641358802684,361.37502786,168.72,168.65,128.75197093]
[1641358802881,361.11502786,168.72,168.65,128.75197093]
[1641358803380,361.37502786,168.72,168.65,128.75197093]
[1641358803882,355.61602786,168.72,168.65,128.75197093]
[1641358804682,356.11602786,168.72,168.65,128.75197093]
[1641358805682,356.11602786,168.72,168.65,128.25197093]
[1641358805883,356.11602786,168.72,168.65,9.53197093]
[1641358806085,356.11602786,168.72,168.65,9.5]
[1641358808587,356.11602786,168.72,168.63,9.5]
[1641358808792,23.1683,168.71,168.63,9.5]
[1641358808987,23.9283,168.71,168.63,9.5]
[1641358809888,23.9283,168.71,168.57,118.72]
[1641358810088,23.9283,168.71,168.55,1.3044]
[1641358810089,10.97846154,168.7,168.58,9.5]
[1641358810290,12.32946154,168.7,168.55,9.5]
[1641358810490,1.47846154,168.69,168.55,9.5]
[1641358810690,9.5,168.68,168.55,9.5]
[1641358810892,2.38042451,168.66,168.55,9.5]
[1641358811089,3.94342451,168.66,168.55,9.76]
[1641358811290,4.44342451,168.66,168.55,9.76]
[1641358812893,24.6067,168.65,168.55,9.76]
[1641358813092,24.8667,168.65,168.55,9.76]
[1641358813292,377.7667,168.65,168.55,9.76]
[1641358813893,377.7667,168.65,168.55,9.5]
[1641358814094,9.5,168.64,168.52,33.9135]
[1641358814396,10.0,168.64,168.52,33.9135]
[1641358814599,10.26,168.64,168.52,24.4135]
[1641358814798,120.0087,168.63,168.52,24.4135]
[1641358814998,9.5,168.62,168.52,1.325]
[1641358815196,32.22914115,168.6,168.52,1.325]
[1641358815395,42.22914115,168.6,168.52,1.325]
[1641358815595,42.48914115,168.6,168.52,1.325]
[1641358816195,42.48914115,168.6,168.48,9.5]
[1641358816395,394.88914115,168.6,168.46,9.5]
[1641358816595,1.3696,168.59,168.46,9.5]
[1641358816795,9.5,168.58,168.46,0.5]
[1641358816997,362.16,168.58,168.46,0.5]
[1641358817295,23.6257,168.57,168.46,0.5]
[1641358817595,23.6257,168.57,168.45,25.053]
[1641358817596,9.5,168.56,168.45,25.813]
[1641358818396,361.9,168.56,168.45,25.813]
[1641358818898,362.66,168.56,168.45,25.553]
[1641358819300,362.66,168.56,168.45,35.053]
[1641358819798,362.4,168.56,168.45,35.053]
[1641358819998,362.4,168.56,168.45,35.313]
[1641358820211,361.9,168.56,168.45,35.313]
[1641358821930,362.4,168.56,168.45,35.313]
[1641358822132,362.66,168.56,168.45,25.553]
[1641358822330,362.66,168.56,168.43,85.7086]
[1641358822530,2.29638397,168.54,168.43,86.2086]
[1641358822730,2.29638397,168.54,168.43,109.7054]
[1641358822731,364.19638397,168.54,168.43,109.7054]
[1641358822930,364.95638397,168.54,168.43,109.7054]
[1641358823230,28.1289645,168.53,168.43,109.7054]
[1641358823432,381.0289645,168.53,168.43,33.4968]
[1641358823631,381.0289645,168.53,168.43,33.7568]
[1641358823831,381.2889645,168.53,168.43,33.2568]
[1641358824030,381.2889645,168.53,168.43,32.9968]
[1641358824230,381.2889645,168.53,168.41,1.3197]
[1641358824431,381.2889645,168.53,168.39,23.2911]
[1641358824432,118.72,168.51,168.39,23.2911]
[1641358824633,33.0779,168.5,168.39,1.2632]
[1641358824831,33.0779,168.5,168.38,72.3248]
[1641358825030,46.21830876,168.5,168.35,33.7395]
[1641358825235,1.2976,168.49,168.36,1.2752]
[1641358825533,12.19104943,168.48,168.36,1.2752]
[1641358825832,12.19104943,168.48,168.36,1.7752]
[1641358826033,24.523,168.47,168.36,1.7752]
[1641358826232,32.36305596,168.46,168.36,1.7752]
[1641358826433,32.86305596,168.46,168.36,1.7752]
[1641358826631,33.12305596,168.46,168.36,1.7752]
[1641358827033,385.52305596,168.46,168.36,1.7752]
[1641358827834,385.52305596,168.46,168.36,2.0352]
[1641358828636,385.26305596,168.46,168.36,2.0352]
[1641358831241,375.76305596,168.46,168.36,2.0352]
[1641358831939,375.26305596,168.46,168.36,2.0352]
[1641358833041,375.76305596,168.46,168.36,2.0352]
[1641358834742,384.31305596,168.46,168.36,2.0352]
[1641358842254,383.81305596,168.46,168.36,2.0352]
[1641358842454,384.31305596,168.46,168.36,2.0352]
[1641358842856,383.81305596,168.46,168.36,2.0352]
[1641358846659,384.07305596,168.46,168.36,2.0352]
[1641358846858,384.31305596,168.46,168.36,2.0352]
[1641358847058,383.81305596,168.46,168.36,2.0352]
[1641358848687,384.31305596,168.46,168.36,2.0352]
[1641358848887,393.13515596,168.46,168.36,2.0352]
[1641358849287,392.63515596,168.46,168.36,2.0352]
[1641358849487,392.63515596,168.46,168.36,1.94611519]
[1641358851093,392.63515596,168.46,168.36,1.68611519]
[1641358851295,393.39515596,168.46,168.36,1.68611519]
[1641358851497,24.7362,168.45,168.36,1.68611519]
[1641358851894,24.9962,168.45,168.36,1.68611519]
[1641358852293,377.3962,168.45,168.36,1.68611519]
[1641358852993,377.8962,168.45,168.36,1.94611519]
[1641358853396,377.3962,168.45,168.36,1.94611519]
[1641358853994,377.8962,168.45,168.36,1.94611519]
[1641358862706,377.6362,168.45,168.36,1.94611519]
[1641358862912,352.4,168.45,168.36,1.94611519]
[1641358863207,384.08515596,168.46,168.36,27.59280204]
[1641358863407,384.08515596,168.46,168.37,24.5105]
[1641358863609,384.08515596,168.46,168.37,24.7705]
[1641358863808,375.26305596,168.46,168.37,25.2705]
[1641358864009,397.98275596,168.46,168.37,25.2705]
[1641358864210,397.98275596,168.46,168.38,1.3083]
[1641358864510,397.98275596,168.46,168.38,1.5683]
[1641358868540,375.26305596,168.46,168.38,1.5683]
[1641358869339,375.26305596,168.46,168.38,1.3083]
[1641358869540,376.02305596,168.46,168.37,24.5105]
[1641358869738,33.3765,168.45,168.37,24.5105]
[1641358869938,33.8765,168.45,168.37,24.5105]
[1641358870139,386.5365,168.45,168.37,24.5105]
[1641358871042,386.5365,168.45,168.37,24.7705]
[1641358871441,386.2765,168.45,168.37,24.7705]
[1641358871840,386.5365,168.45,168.37,24.7705]
[1641358872643,386.2765,168.45,168.37,24.7705]
[1641358874142,360.95,168.45,168.37,24.7705]
[1641358874342,352.4,168.45,168.37,24.7705]
[1641358874543,375.26305596,168.46,168.37,24.7705]
[1641358875346,399.92865596,168.46,168.37,24.7705]
[1641358875947,399.92865596,168.46,168.38,1.2732]
[1641358876348,399.92865596,168.46,168.38,1.5332]
[1641358885862,399.92865596,168.46,168.38,2.0332]
[1641358887671,399.92865596,168.46,168.38,1.5332]
[1641358893100,399.92865596,168.46,168.38,2.0332]
[1641358894001,409.42865596,168.46,168.38,2.0332]
[1641358894602,409.42865596,168.46,168.38,1.7732]
[1641358894903,409.42865596,168.46,168.38,1.2732]
[1641358895104,409.92865596,168.46,168.38,1.2732]
[1641358895301,409.42865596,168.46,168.38,1.2732]
[1641358896008,409.42865596,168.46,168.38,1.5332]
[1641358896809,409.42865596,168.46,168.38,1.2732]
[1641358898009,409.92865596,168.46,168.38,1.2732]
[1641358898208,409.92865596,168.46,168.38,1.5332]
[1641358902817,418.72265596,168.46,168.38,1.5332]
[1641358903213,418.72265596,168.46,168.38,1.2732]
[1641358904414,418.72265596,168.46,168.38,1.5332]
[1641358906416,418.72265596,168.46,168.38,1.2732]
[1641358906817,418.98265596,168.46,168.38,1.2732]
[1641358907017,418.48265596,168.46,168.38,1.2732]
[1641358907318,418.98265596,168.46,168.38,1.2732]
[1641358907520,418.48265596,168.46,168.38,1.2732]
[1641358907720,418.98265596,168.46,168.38,1.2732]
[1641358907918,418.98265596,168.46,168.38,1.5332]
[1641358910323,418.72265596,168.46,168.38,1.5332]
[1641358913157,418.72265596,168.46,168.38,1.2732]
[1641358914659,418.72265596,168.46,168.38,1.5332]
[1641358920365,418.72265596,168.46,168.38,2.0332]
[1641358920565,418.72265596,168.46,168.38,1.7732]
[1641358921967,418.72265596,168.46,168.38,2.0332]
[1641358922967,418.72265596,168.46,168.38,1.7732]
[1641358924470,418.72265596,168.46,168.38,2.0332]
[1641358931805,418.72265596,168.46,168.38,1.5332]
[1641358932006,418.72265596,168.46,168.33,75.9052]
[1641358932007,420.4611175,168.46,168.33,9.5]
[1641358932205,539.2311175,168.46,168.34,1.3588]
[1641358932412,1.3047,168.45,168.34,1.3588]
[1641358932605,9.5,168.44,168.34,1.3588]
[1641358932805,10.97846154,168.44,168.32,22.5358]
[1641358933105,2.25900489,168.42,168.32,22.5358]
[1641358933308,11.75900489,168.42,168.32,24.3726]
[1641358933506,12.25900489,168.42,168.32,0.76]
[1641358933706,12.25900489,168.42,168.31,10.26]
[1641358934307,12.51900489,168.42,168.31,10.26]
[1641358934508,1.3602,168.41,168.31,10.26]
[1641358935108,353.7602,168.41,168.32,23.3628]
[1641358935507,353.7602,168.41,168.32,24.1228]
[1641358935708,353.7602,168.41,168.32,25.4859]
[1641358938009,363.2602,168.41,168.32,25.4859]
[1641358940211,22.58632863,168.39,168.32,25.4859]
[1641358942013,22.58632863,168.39,168.32,2.1231]
[1641358947317,352.4,168.39,168.32,2.1231]
[1641358947515,352.4,168.39,168.33,9.5]
[1641358947916,352.4,168.39,168.33,10.26]
[1641358948317,29.71568785,168.39,168.33,10.26]
[1641358948917,29.71568785,168.39,168.33,0.76]
[1641358949118,29.71568785,168.39,168.33,0.5]
[1641358949317,29.71568785,168.39,168.32,11.6231]
[1641358952319,53.64508785,168.39,168.32,11.6231]
[1641358954219,29.71568785,168.39,168.32,11.6231]
[1641358955422,382.11568785,168.39,168.32,11.6231]
[1641358960426,405.70158785,168.39,168.32,11.6231]
[1641358966364,382.11568785,168.39,168.32,11.6231]
[1641358970172,406.91778785,168.39,168.32,11.6231]
[1641358976777,382.11568785,168.39,168.32,11.6231]
[1641358979281,404.96898785,168.39,168.32,11.6231]
[1641358984590,382.11568785,168.39,168.32,11.6231]
[1641358986302,406.82878785,168.39,168.32,11.6231]
[1641358987700,382.11568785,168.39,168.32,11.6231]
[1641358992534,382.11568785,168.39,168.32,11.6831]
[1641358995436,382.11568785,168.39,168.32,11.4231]
[1641358997039,382.11568785,168.39,168.32,11.6831]
[1641358998240,405.36158785,168.39,168.32,11.6831]
[1641359007260,405.36158785,168.39,168.32,11.1831]
[1641359007456,8.93449239,168.32,168.24,337.6049078]
[1641359007660,8.93449239,168.32,168.25,153.8083]
[1641359008057,8.93449239,168.32,168.25,129.5481]
[1641359008257,8.93449239,168.32,168.25,128.27]
[1641359008485,8.93449239,168.32,168.25,9.5]
[1641359008685,8.93449239,168.32,168.24,337.6049078]
[1641359008893,38.1046301,168.32,168.24,337.6049078]
[1641359009088,38.6046301,168.32,168.24,337.6049078]
[1641359009286,38.6046301,168.32,168.24,338.1049078]
[1641359009586,391.0046301,168.32,168.24,0.5]
[1641359009786,390.5046301,168.32,168.22,11.344]
[1641359010588,391.8622301,168.32,168.22,11.604]
[1641359013691,401.3622301,168.32,168.22,11.604]
[1641359015390,2.23277506,168.3,168.22,11.604]
[1641359016494,354.63277506,168.3,168.22,11.604]
[1641359022698,354.63277506,168.3,168.22,11.344]
[1641359024100,354.63277506,168.3,168.22,11.604]
[1641359024901,352.4,168.3,168.22,11.604]
[1641359025104,375.9265,168.31,168.22,17.418]
[1641359025305,352.4,168.31,168.22,17.418]
[1641359025904,355.15960922,168.31,168.22,42.4035]
[1641359026106,355.15960922,168.31,168.22,36.5895]
[1641359026404,355.15960922,168.31,168.22,35.8295]
[1641359026605,24.478,168.3,168.22,35.8295]
[1641359027632,24.478,168.3,168.22,36.0895]
[1641359027831,24.478,168.3,168.22,36.5895]
[1641359029235,24.478,168.3,168.22,36.50034902]
[1641359030337,376.878,168.3,168.22,36.50034902]
[1641359030737,352.4,168.3,168.22,36.50034902]
[1641359031138,354.54359347,168.31,168.22,36.50034902]
[1641359032839,354.54359347,168.31,168.22,36.24034902]
[1641359033439,24.5829,168.3,168.22,36.24034902]
[1641359034239,24.5829,168.3,168.22,36.50034902]
[1641359036841,24.5829,168.3,168.22,36.24034902]
[1641359037042,24.5829,168.3,168.22,11.25484902]
[1641359038345,24.5829,168.3,168.22,11.51484902]
[1641359038546,24.5829,168.3,168.22,130.28484902]
[1641359039445,24.5829,168.3,168.23,118.77]
[1641359039645,24.5829,168.3,168.24,9.5]
[1641359039944,24.5829,168.3,168.24,10.0]
[1641359040150,24.5829,168.3,168.24,10.26]
[1641359040547,24.5829,168.3,168.24,10.0]
[1641359041951,24.5829,168.3,168.24,10.26]
[1641359045254,27.31183776,168.3,168.24,10.26]
[1641359047461,379.71183776,168.3,168.24,10.26]
[1641359051170,355.12893776,168.3,168.24,10.26]
[1641359057096,355.12893776,168.3,168.24,10.0]
[1641359058600,355.12893776,168.3,168.24,10.26]
[1641359059299,355.12893776,168.3,168.24,10.0]
[1641359060697,355.12893776,168.3,168.24,10.26]
[1641359060999,355.12893776,168.3,168.24,10.0]
[1641359061597,355.12893776,168.3,168.24,0.5]
[1641359061997,355.12893776,168.3,168.22,24.5019]
[1641359062599,355.12893776,168.3,168.23,9.5]
[1641359063002,355.12893776,168.3,168.23,10.0]
[1641359063203,355.12893776,168.3,168.23,10.26]
[1641359063601,355.12893776,168.3,168.23,10.0]
[1641359065202,355.12893776,168.3,168.23,10.26]
[1641359066202,352.4,168.3,168.23,10.26]
[1641359066605,353.6524,168.31,168.23,10.26]
[1641359067406,356.63628289,168.31,168.23,10.26]
[1641359068405,355.38388289,168.31,168.23,10.26]
[1641359071006,355.38388289,168.31,168.23,10.0]
[1641359072308,355.38388289,168.31,168.23,10.26]
[1641359074309,352.4,168.31,168.23,17.688]
[1641359074710,352.4,168.31,168.23,8.188]
[1641359074910,390.5046301,168.32,168.23,8.188]
[1641359075111,390.5046301,168.32,168.24,8.56]
[1641359075314,390.5046301,168.32,168.24,33.2169]
[1641359075511,390.5046301,168.32,168.24,33.9769]
[1641359075910,390.5046301,168.32,168.24,35.2214]
[1641359077211,2.66199891,168.31,168.24,35.2214]
[1641359079414,355.06199891,168.31,168.24,35.2214]
[1641359087352,355.06199891,168.31,168.24,34.9614]
[1641359088753,355.06199891,168.31,168.24,35.2214]
[1641359090053,355.06199891,168.31,168.24,34.9614]
[1641359091256,355.06199891,168.31,168.24,35.2214]
[1641359113080,355.06199891,168.31,168.24,34.9614]
[1641359113380,355.06199891,168.31,168.21,8.56]
[1641359113584,22.7505,168.3,168.21,8.56]
[1641359113883,23.2505,168.3,168.17,8.56]
[1641359114080,2.71442524,168.28,168.17,8.56]
[1641359114282,362.07842524,168.28,168.17,8.56]
[1641359114481,362.83842524,168.28,168.17,8.56]
[1641359115185,1.47846154,168.27,168.17,8.56]
[1641359115383,1.97846154,168.27,168.17,8.56]
[1641359115582,2.29846154,168.27,168.17,8.56]
[1641359115784,0.82,168.27,168.17,8.56]
[1641359115982,0.82,168.27,168.17,9.06]
[1641359116183,0.06,168.27,168.17,9.06]
[1641359118986,0.06,168.27,168.17,0.5]
[1641359119186,0.06,168.27,168.17,0.76]
[1641359119386,0.06,168.27,168.13,9.32]
[1641359119887,22.7417,168.27,168.13,9.32]
[1641359120087,23.5017,168.27,168.13,9.32]
[1641359124315,25.24734561,168.25,168.13,9.32]
[1641359124514,25.50734561,168.25,168.13,9.32]
[1641359124717,26.00734561,168.25,168.13,9.32]
[1641359125116,27.28044561,168.25,168.13,9.32]
[1641359125516,27.02044561,168.25,168.13,9.32]
[1641359126118,26.52044561,168.25,168.13,9.32]
[1641359127824,26.52044561,168.25,168.14,1.3116]
[1641359128019,26.78044561,168.25,168.14,10.1316]
[1641359128219,26.78044561,168.25,168.14,10.6316]
[1641359129024,26.52044561,168.25,168.14,10.6316]
[1641359134524,376.70489062,168.25,168.14,10.6316]
[1641359135526,2.99630645,168.24,168.14,10.6316]
[1641359137629,26.70310645,168.24,168.14,10.6316]
[1641359140335,379.10310645,168.24,168.14,10.6316]
[1641359148075,379.10310645,168.24,168.14,10.1316]
[1641359149178,355.39630645,168.24,168.14,10.1316]
[1641359150181,355.39630645,168.24,168.14,33.4638]
[1641359158519,355.39630645,168.24,168.14,33.2038]
[1641359159892,355.39630645,168.24,168.14,33.4638]
[1641359162794,355.39630645,168.24,168.14,33.2038]
[1641359163195,1.2437,168.23,168.14,33.2038]
[1641359164495,25.5141,168.23,168.14,33.2038]
[1641359164900,25.5141,168.23,168.15,106.24610488]
[1641359165199,352.4,168.24,168.16,8.56]
[1641359165396,375.43179062,168.25,168.16,9.06]
[1641359165597,375.43179062,168.25,168.17,1.2899]
[1641359165796,375.43179062,168.25,168.18,8.56]
[1641359166026,375.43179062,168.25,168.18,9.32]
[1641359167127,374.93179062,168.25,168.18,9.32]
[1641359173433,374.93179062,168.25,168.18,9.06]
[1641359174834,375.43179062,168.25,168.18,9.32]
[1641359175032,374.93179062,168.25,168.18,0.76]
[1641359175436,375.43179062,168.25,168.17,2.0499]
[1641359175634,374.93179062,168.25,168.17,2.0499]
[1641359175834,375.43179062,168.25,168.17,2.0499]
[1641359176035,376.69809062,168.25,168.17,2.0499]
[1641359178738,376.19809062,168.25,168.17,2.0499]
[1641359195391,374.93179062,168.25,168.17,10.6099]
[1641359206899,376.30559062,168.25,168.17,10.6099]
[1641359207101,376.30559062,168.25,168.17,8.56]
[1641359207301,376.30559062,168.25,168.13,32.9864]
[1641359207503,22.5431,168.24,168.13,34.2727]
[1641359208101,374.9431,168.24,168.13,34.2727]
[1641359208504,374.9431,168.24,168.13,35.0327]
[1641359208703,1.3777,168.23,168.13,35.0327]
[1641359209102,353.7777,168.23,168.13,34.7727]
[1641359209304,27.32710944,168.21,168.13,34.7727]
[1641359210306,379.72710944,168.21,168.13,34.7727]
[1641359210505,2.54979692,168.2,168.13,35.0327]
[1641359211108,354.94979692,168.2,168.13,35.0327]
[1641359211304,377.82619692,168.2,168.13,35.0327]
[1641359213615,354.94979692,168.2,168.13,35.0327]